bitfinex/quotes_BTCUSD_20240815
["timestamp","ask_amount","ask_price","bid_price","bid_amount"]
[1723712479746,0.31545554,58443.0,58442.0,1.200766]
[1723712479952,1e-06,58443.0,58442.0,0.858547]
[1723712480157,1e-06,58443.0,58442.0,1.200766]
[1723712482801,1e-06,58443.0,58442.0,1.542985]
[1723712483213,1e-06,58443.0,58442.0,1.642985]
[1723712483566,1e-06,58443.0,58442.0,1.65308269]
[1723712484948,1e-06,58443.0,58442.0,1.73228269]
[1723712486149,1e-06,58443.0,58442.0,1.73318799]
[1723712486358,1e-06,58443.0,58442.0,2.24596153]
[1723712486559,1e-06,58443.0,58442.0,2.30736153]
[1723712486994,0.001001,58443.0,58442.0,2.31736153]
[1723712488161,0.001001,58443.0,58442.0,2.30636153]
[1723712488162,1e-06,58443.0,58442.0,2.30636153]
[1723712488570,1e-06,58443.0,58442.0,2.33136153]
[1723712489074,2e-07,58444.0,58443.0,2.020071]
[1723712489302,2e-07,58444.0,58443.0,2.37740281]
[1723712489707,2e-07,58444.0,58443.0,2.37940281]
[1723712489880,2e-07,58444.0,58443.0,2.71961581]
[1723712490912,2e-07,58444.0,58443.0,2.72161581]
[1723712491521,2e-07,58444.0,58443.0,2.74861581]
[1723712491834,0.0002068,58447.0,58446.0,2.661174]
[1723712491835,1e-06,58447.0,58446.0,2.661174]
[1723712492030,0.0008038,58450.0,58446.0,2.661174]
[1723712492031,8e-07,58450.0,58449.0,0.314289]
[1723712492162,8e-07,58450.0,58449.0,2.04033281]
[1723712492573,8e-07,58454.0,58453.0,0.515232]
[1723712492774,8e-07,58454.0,58453.0,2.34710654]
[1723712492987,8e-07,58454.0,58453.0,1.933397]
[1723712493192,8e-07,58454.0,58453.0,1.639697]
[1723712493811,8e-07,58454.0,58453.0,1.64977329]
[1723712494021,8e-07,58454.0,58453.0,1.639697]
[1723712495148,8e-07,58454.0,58453.0,1.650697]
[1723712495801,8e-07,58454.0,58453.0,1.662697]
[1723712495979,8e-07,58454.0,58453.0,1.651697]
[1723712496187,8e-07,58454.0,58453.0,1.639697]
[1723712496395,8e-07,58454.0,58453.0,1.649697]
[1723712496623,8e-07,58454.0,58453.0,1.660697]
[1723712503212,0.0607008,58454.0,58453.0,1.660697]
[1723712503616,8e-07,58454.0,58453.0,2.093097]
[1723712503777,8e-07,58454.0,58453.0,1.954397]
[1723712503980,0.0816008,58454.0,58453.0,1.318542]
[1723712504994,0.1443008,58454.0,58453.0,1.318542]
[1723712505373,8e-07,58454.0,58453.0,1.660697]
[1723712507710,8e-07,58454.0,58453.0,1.954397]
[1723712507921,8e-07,58454.0,58453.0,2.034397]
[1723712508683,8e-07,58454.0,58453.0,2.099997]
[1723712508886,8e-07,58454.0,58453.0,2.442152]
[1723712509094,8e-07,58454.0,58453.0,2.099997]
[1723712509511,8e-07,58454.0,58453.0,2.089997]
[1723712509919,8e-07,58454.0,58453.0,2.101997]
[1723712510137,8e-07,58454.0,58453.0,2.444152]
[1723712510584,8e-07,58454.0,58453.0,2.61570654]
[1723712510799,8e-07,58454.0,58453.0,2.60470654]
[1723712511230,8e-07,58454.0,58453.0,2.61870654]
[1723712511443,8e-07,58454.0,58453.0,2.59270654]
[1723712511860,8e-07,58454.0,58453.0,2.60570654]
[1723712512261,8e-07,58454.0,58453.0,2.59270654]
[1723712512437,8e-07,58454.0,58453.0,2.60670654]
[1723712512588,8e-07,58454.0,58453.0,2.27855154]
[1723712512801,8e-07,58454.0,58453.0,2.62070654]
[1723712513862,8e-07,58454.0,58453.0,2.96286154]
[1723712514060,8e-07,58454.0,58453.0,2.96486154]
[1723712514644,8e-07,58454.0,58453.0,2.95086154]
[1723712514845,8e-07,58454.0,58453.0,2.60870654]
[1723712515424,8e-07,58454.0,58453.0,2.62270654]
[1723712515670,8e-07,58454.0,58453.0,2.60870654]
[1723712516025,8e-07,58454.0,58453.0,2.62270654]
[1723712516629,0.00953379,58465.0,58453.0,2.62270654]
[1723712516630,0.00953379,58465.0,58459.0,0.1396]
[1723712516829,0.00953379,58465.0,58464.0,0.546345]
[1723712517157,0.00953379,58465.0,58464.0,1.672615]
[1723712517317,0.00953379,58465.0,58464.0,1.933105]
[1723712517519,0.14963379,58465.0,58464.0,1.933105]
[1723712517723,0.14963379,58465.0,58464.0,1.297315]
[1723712518123,0.14963379,58465.0,58464.0,1.310315]
[1723712518328,0.14963379,58465.0,58464.0,1.297315]
[1723712518665,0.14963379,58465.0,58464.0,1.307315]
[1723712519613,0.14963379,58465.0,58464.0,1.316315]
[1723712520401,0.14963379,58465.0,58464.0,1.306315]
[1723712520809,0.00953379,58465.0,58464.0,1.305315]
[1723712521018,0.00953379,58465.0,58464.0,1.792905]
[1723712521338,0.00953379,58465.0,58464.0,1.799905]
[1723712521660,0.00953379,58465.0,58464.0,1.654405]
[1723712521813,0.00953379,58465.0,58464.0,1.312315]
[1723712523747,0.15533379,58465.0,58464.0,0.528135]
[1723712524106,0.15533379,58465.0,58464.0,0.870225]
[1723712524349,0.15615679,58465.0,58464.0,0.870225]
[1723712525213,0.15615679,58465.0,58464.0,0.528135]
[1723712525595,0.15615679,58465.0,58464.0,0.870225]
[1723712527490,0.15615679,58465.0,58464.0,0.528135]
[1723712527691,1.31175333,58465.0,58464.0,0.015]
[1723712528094,0.35071133,58465.0,58464.0,0.186045]
[1723712528305,0.35071133,58465.0,58464.0,0.528135]
[1723712528306,0.15615679,58465.0,58464.0,0.528135]
[1723712528505,0.15615679,58465.0,58464.0,0.863225]
[1723712528707,0.15615679,58465.0,58464.0,0.855225]
[1723712529420,0.15615679,58465.0,58464.0,0.513135]
[1723712529628,0.15615679,58465.0,58464.0,0.855225]
[1723712530128,0.01035679,58465.0,58464.0,0.855225]
[1723712530753,0.01235679,58465.0,58464.0,1.197315]
[1723712531180,0.01235679,58465.0,58464.0,1.374015]
[1723712531410,0.01235679,58465.0,58464.0,2.009805]
[1723712531411,0.01035679,58465.0,58464.0,2.009805]
[1723712531617,0.01035679,58465.0,58464.0,1.669715]
[1723712532025,0.01035679,58465.0,58464.0,2.013805]
[1723712532194,0.01035679,58465.0,58464.0,2.009805]
[1723712532468,0.01035679,58465.0,58464.0,2.014805]
[1723712532676,0.01035679,58465.0,58464.0,1.672715]
[1723712532916,0.01035679,58465.0,58464.0,1.302315]
[1723712533076,0.08765679,58465.0,58464.0,1.308315]
[1723712534038,0.08765679,58465.0,58464.0,1.303315]
[1723712534241,0.14955679,58465.0,58464.0,1.310315]
[1723712534464,0.14955679,58465.0,58464.0,0.868225]
[1723712534879,0.14955679,58465.0,58464.0,0.855225]
[1723712535127,0.01035679,58465.0,58464.0,1.734415]
[1723712535308,0.01035679,58465.0,58464.0,1.747415]
[1723712535516,0.01035679,58465.0,58464.0,1.739415]
[1723712535733,0.01035679,58465.0,58464.0,2.076505]
[1723712535947,0.01035679,58465.0,58464.0,2.079505]
[1723712536147,0.01035679,58465.0,58464.0,2.076505]
[1723712536423,0.01035679,58465.0,58464.0,2.085505]
[1723712536627,0.01035679,58465.0,58464.0,2.076505]
[1723712537584,0.01035679,58465.0,58464.0,2.079505]
[1723712537974,0.01035679,58465.0,58464.0,2.08978156]
[1723712538229,0.01035679,58465.0,58464.0,2.08678156]
[1723712538551,0.01035679,58465.0,58464.0,2.09878156]
[1723712538756,0.01035679,58465.0,58464.0,2.11178156]
[1723712543274,0.01035679,58465.0,58464.0,2.6254261]
[1723712543683,7.9e-07,58467.0,58466.0,0.001]
[1723712543890,7.9e-07,58467.0,58466.0,1.85140954]
[1723712544085,7.9e-07,58467.0,58466.0,2.29348854]
[1723712544293,7.9e-07,58467.0,58466.0,2.63556754]
[1723712544500,0.0002,58479.0,58478.0,1.539036]
[1723712545902,0.0002,58479.0,58478.0,2.32127581]
[1723712546430,0.0002,58479.0,58478.0,2.071944]
[1723712546655,0.0002,58479.0,58478.0,1.729936]
[1723712546860,0.0002,58479.0,58478.0,1.73210684]
[1723712547055,0.0002,58479.0,58478.0,1.74610684]
[1723712547438,0.0002,58479.0,58478.0,1.75310684]
[1723712547842,0.0632,58479.0,58478.0,1.660036]
[1723712548072,0.0632,58479.0,58478.0,1.653036]
[1723712548273,0.0632,58479.0,58478.0,1.311028]
[1723712548870,0.0632,58479.0,58478.0,1.324028]
[1723712549228,0.0002,58479.0,58478.0,1.324028]
[1723712549433,0.0002,58479.0,58478.0,1.63888254]
[1723712549639,0.0002,58479.0,58478.0,1.98089054]
[1723712550292,0.0002,58479.0,58478.0,1.809336]
[1723712551196,0.0002,58479.0,58478.0,1.98089054]
[1723712551347,0.0002,58479.0,58478.0,1.809336]
[1723712551757,0.0002,58479.0,58478.0,1.324028]
[1723712552207,0.0002,58479.0,58478.0,1.666036]
[1723712552616,0.0002,58479.0,58478.0,1.324028]
[1723712553235,0.0100256,58483.0,58478.0,1.324028]
[1723712553236,0.0100256,58483.0,58482.0,1.538932]
[1723712553464,0.0100256,58483.0,58482.0,1.782232]
[1723712553670,0.0100256,58483.0,58482.0,2.124217]
[1723712553894,0.0100256,58483.0,58482.0,2.29577154]
[1723712554450,0.0100256,58483.0,58482.0,2.30377154]
[1723712555110,0.0100256,58483.0,58482.0,2.29577154]
[1723712555317,0.0100256,58483.0,58482.0,2.32377154]
[1723712555522,6e-07,58483.0,58482.0,2.66575654]
[1723712555737,6e-07,58483.0,58482.0,2.65175654]
[1723712555950,6e-07,58483.0,58482.0,2.65375654]
[1723712556359,6e-07,58483.0,58482.0,2.66775654]
[1723712556931,6e-07,58483.0,58482.0,2.65375654]
[1723712557141,6e-07,58483.0,58482.0,2.65175654]
[1723712557378,6e-07,58483.0,58482.0,2.66575654]
[1723712557713,6e-07,58483.0,58482.0,2.32377154]
[1723712558603,6e-07,58483.0,58482.0,2.26167154]
[1723712559125,6e-07,58483.0,58482.0,2.27173803]
[1723712560148,6e-07,58483.0,58482.0,2.33613803]
[1723712561333,3e-07,58495.0,58494.0,0.170957]
[1723712561449,3e-07,58495.0,58494.0,1.16604154]
[1723712561658,3e-07,58495.0,58494.0,1.94987154]
[1723712561856,3e-07,58495.0,58494.0,2.63370154]
[1723712562259,0.0707277,58507.0,58502.0,0.170934]
[1723712562260,6e-07,58503.0,58502.0,0.170934]
[1723712562473,6e-07,58503.0,58502.0,0.906502]
[1723712562771,6e-07,58503.0,58502.0,1.24837]
[1723712562991,6e-07,58503.0,58502.0,1.590238]
[1723712563188,0.0818006,58503.0,58502.0,1.590238]
[1723712564165,0.0818006,58503.0,58502.0,1.296538]
[1723712564166,0.1439006,58503.0,58502.0,1.296538]
[1723712565147,0.1439006,58503.0,58502.0,1.310538]
[1723712565351,0.1439006,58503.0,58502.0,1.296538]
[1723712565775,0.1439006,58503.0,58502.0,1.309538]
[1723712565936,0.1439006,58503.0,58502.0,1.296538]
[1723712566548,0.1439006,58503.0,58502.0,1.306538]
[1723712566698,0.1439006,58503.0,58502.0,1.318538]
[1723712567106,0.1439006,58503.0,58502.0,1.306538]
[1723712567506,0.1439006,58503.0,58502.0,1.315538]
[1723712571987,0.1439006,58503.0,58502.0,1.215538]
[1723712572611,0.1439006,58503.0,58502.0,0.87367]
[1723712572612,0.31545514,58503.0,58502.0,0.87367]
[1723712573014,0.31545514,58503.0,58502.0,0.8745753]
[1723712573962,0.1439006,58503.0,58502.0,0.8655753]
[1723712574415,0.1449006,58503.0,58502.0,0.8555753]
[1723712574959,0.1439006,58503.0,58502.0,0.8555753]
[1723712575149,0.1439006,58503.0,58502.0,1.2974433]
[1723712575301,0.1439006,58503.0,58502.0,1.5931433]
[1723712575706,0.1439006,58503.0,58502.0,1.1994433]
[1723712576311,0.31545514,58503.0,58502.0,0.8575753]
[1723712576483,0.31545514,58503.0,58502.0,0.8555753]
[1723712577316,0.31545514,58503.0,58502.0,0.8585753]
[1723712577759,0.31545514,58503.0,58502.0,0.8625753]
[1723712577954,0.31545514,58503.0,58502.0,0.5137073]
[1723712578159,1.12945514,58503.0,58502.0,0.1718393]
[1723712578500,0.0775,58502.0,58474.0,0.0806]
[1723712578699,0.0775,58502.0,58466.0,0.14657727]
[1723712578700,0.170949,58497.0,58495.0,0.51466362]
[1723712578873,0.170949,58497.0,58490.0,0.341938]
[1723712578874,0.1421,58494.0,58490.0,0.341938]
[1723712579076,0.24905454,58493.0,58492.0,0.51289]
[1723712579276,0.27205454,58493.0,58492.0,0.51289]
[1723712579731,0.0646,58491.0,58489.0,0.17097]
[1723712579913,0.27205454,58490.0,58489.0,0.341944]
[1723712580088,0.27205454,58490.0,58489.0,0.512916]
[1723712580292,0.27205454,58490.0,58489.0,0.170972]
[1723712580489,0.27205454,58490.0,58489.0,0.512916]
[1723712580816,0.27205454,58490.0,58485.0,0.341962]
[1723712581018,0.1421,58488.0,58484.0,0.170986]
[1723712581215,0.1421,58488.0,58469.0,0.2937]
[1723712581216,0.0775,58486.0,58485.0,0.170981]
[1723712581430,0.24905454,58486.0,58485.0,0.512949]
[1723712581628,0.27205454,58486.0,58485.0,0.854917]
[1723712582005,0.27205454,58486.0,58485.0,0.170981]
[1723712582186,0.27205454,58486.0,58485.0,0.512949]
[1723712582615,0.24905454,58486.0,58485.0,0.854917]
[1723712582787,0.0775,58486.0,58485.0,1.196885]
[1723712582993,0.0785,58486.0,58485.0,1.196885]
[1723712584482,0.001,58486.0,58485.0,1.538853]
[1723712584687,0.001,58486.0,58485.0,1.6397583]
[1723712584912,0.001,58486.0,58485.0,2.1244263]
[1723712585331,0.4764,58496.0,58495.0,1.196681]
[1723712585769,0.4764,58496.0,58495.0,1.296681]
[1723712587691,0.4774,58496.0,58495.0,1.296681]
[1723712590152,0.001,58496.0,58495.0,1.296681]
[1723712592259,0.001,58496.0,58495.0,1.63859]
[1723712593901,0.4764,58506.0,58495.0,1.63859]
[1723712593902,0.4764,58506.0,58502.0,1.538406]
[1723712594239,0.015,58513.0,58502.0,1.720206]
[1723712594718,0.0756,58510.0,58502.0,1.638406]
[1723712595152,0.0756,58510.0,58502.0,1.651406]
[1723712595540,0.0756,58510.0,58502.0,1.656406]
[1723712595778,0.015,58513.0,58502.0,1.638406]
[1723712596179,0.015,58513.0,58502.0,1.643406]
[1723712596390,0.0804,58506.0,58502.0,1.643406]
[1723712596632,0.0648,58508.0,58502.0,1.643406]
[1723712596840,0.0804,58510.0,58502.0,1.643406]
[1723712597244,0.0804,58510.0,58502.0,1.652406]
[1723712597649,0.0804,58510.0,58502.0,1.643406]
[1723712597835,0.0804,58510.0,58502.0,1.650406]
[1723712598064,0.0804,58510.0,58502.0,1.645406]
[1723712598265,0.0954,58513.0,58502.0,1.638406]
[1723712598473,0.015,58513.0,58502.0,1.797406]
[1723712598872,0.015,58513.0,58502.0,1.785406]
[1723712599007,0.015,58513.0,58502.0,1.792406]
[1723712599460,0.015,58513.0,58502.0,1.653406]
[1723712599663,0.0869277,58507.0,58502.0,1.646406]
[1723712599872,0.0869277,58507.0,58502.0,1.304538]
[1723712600077,0.0613,58505.0,58502.0,1.318538]
[1723712600486,0.0613,58505.0,58502.0,1.218538]
[1723712600899,0.17155514,58503.0,58502.0,0.86867]
[1723712601106,0.25205514,58503.0,58502.0,0.86867]
[1723712601303,0.25205514,58503.0,58502.0,0.88267]
[1723712601550,0.25205514,58503.0,58502.0,0.86867]
[1723712601900,0.25205514,58503.0,58502.0,0.87667]
[1723712602112,0.25205514,58503.0,58502.0,0.86867]
[1723712602331,0.25205514,58503.0,58502.0,0.85467]
[1723712602740,0.25205514,58503.0,58502.0,0.519802]
[1723712602938,0.25205514,58503.0,58502.0,0.86167]
[1723712603141,0.25205514,58503.0,58502.0,0.175934]
[1723712603298,0.31495514,58503.0,58502.0,0.175934]
[1723712603503,0.31495514,58503.0,58502.0,0.86367]
[1723712604324,0.31495514,58503.0,58502.0,0.521802]
[1723712606383,0.31495514,58503.0,58502.0,0.86367]
[1723712606811,0.31495514,58503.0,58502.0,0.521802]
[1723712607159,0.31495514,58503.0,58502.0,0.179934]
[1723712607563,0.31495514,58503.0,58502.0,0.521802]
[1723712608602,0.31495514,58503.0,58502.0,0.009]
[1723712608805,0.33795514,58503.0,58502.0,0.009]
[1723712609308,1.23888614,58503.0,58502.0,0.009]
[1723712610091,1.23888614,58503.0,58502.0,0.005]
[1723712610292,1.58074814,58503.0,58502.0,0.006]
[1723712611041,1.58074814,58503.0,58502.0,0.001]
[1723712611464,1.58274814,58503.0,58502.0,0.002]
[1723712612250,0.33995514,58503.0,58502.0,0.002]
[1723712612462,0.25405514,58503.0,58502.0,0.85667]
[1723712612663,0.0020006,58503.0,58502.0,0.85667]
[1723712613442,0.0020006,58503.0,58502.0,0.85567]
[1723712613771,0.0020006,58503.0,58502.0,0.85667]
[1723712614180,6e-07,58503.0,58502.0,0.85567]
[1723712614390,6e-07,58503.0,58502.0,0.85467]
[1723712614605,6e-07,58503.0,58502.0,0.85567]
[1723712614606,0.0020006,58503.0,58502.0,0.85567]
[1723712614852,6e-07,58503.0,58502.0,0.85467]
[1723712615266,0.0020006,58503.0,58502.0,0.85467]
[1723712615467,0.0759,58507.0,58506.0,0.512767]
[1723712615671,0.0759,58507.0,58506.0,0.854612]
[1723712615672,0.27045454,58507.0,58506.0,0.854612]
[1723712615872,0.19455454,58507.0,58506.0,0.854612]
[1723712616798,0.19455454,58507.0,58506.0,0.855612]
[1723712616999,0.0819,58512.0,58511.0,0.170908]
[1723712617152,0.0819,58512.0,58511.0,0.512724]
[1723712617153,0.27645454,58512.0,58511.0,0.512724]
[1723712617359,0.015,58513.0,58512.0,0.854525]
[1723712617552,0.015,58513.0,58512.0,1.196335]
[1723712620152,0.26875454,58513.0,58512.0,0.854525]
[1723712620392,0.29175454,58513.0,58512.0,0.854525]
[1723712620609,0.29175454,58513.0,58512.0,0.512715]
[1723712621607,0.29175454,58513.0,58512.0,0.854525]
[1723712622081,0.29175454,58513.0,58512.0,0.512715]
[1723712622250,0.29257754,58513.0,58511.0,0.170907]
[1723712622451,0.19455454,58512.0,58511.0,0.170907]
[1723712622678,0.98455454,58512.0,58511.0,0.170907]
[1723712623926,0.98455454,58512.0,58511.0,0.512723]
[1723712624346,0.98455454,58512.0,58511.0,0.170907]
[1723712626019,0.98455454,58512.0,58511.0,0.512723]
[1723712627024,0.17155454,58512.0,58511.0,0.854539]
[1723712627430,0.015823,58513.0,58512.0,0.854525]
[1723712627660,0.18737754,58513.0,58512.0,0.854525]
[1723712629548,0.18737754,58513.0,58512.0,1.196335]
[1723712629549,0.015823,58513.0,58512.0,1.196335]
[1723712630374,0.015823,58513.0,58512.0,1.676745]
[1723712630588,0.015823,58513.0,58512.0,1.776745]
[1723712630817,0.015823,58513.0,58512.0,2.118555]
[1723712631023,0.015823,58513.0,58512.0,1.776745]
[1723712632482,0.015823,58513.0,58512.0,1.790745]
[1723712633096,0.015823,58513.0,58512.0,1.801745]
[1723712633701,0.015823,58513.0,58512.0,1.790745]
[1723712633902,0.015823,58513.0,58512.0,1.799745]
[1723712634129,0.015823,58513.0,58512.0,1.785745]
[1723712634544,0.015823,58513.0,58512.0,1.797745]
[1723712634747,0.015823,58513.0,58512.0,1.785745]
[1723712634952,0.015823,58513.0,58512.0,1.796745]
[1723712638519,0.0002,58531.0,58529.0,0.170855]
[1723712638730,6.4e-07,58530.0,58529.0,1.26572954]
[1723712638946,6.4e-07,58530.0,58529.0,1.94914954]
[1723712639149,6.4e-07,58530.0,58529.0,2.29085954]
[1723712639377,6.4e-07,58531.0,58530.0,1.631567]
[1723712639568,6.4e-07,58531.0,58530.0,2.24482654]
[1723712639771,6.4e-07,58531.0,58530.0,2.58653154]
[1723712640398,6.4e-07,58531.0,58530.0,2.24282654]
[1723712641508,6.4e-07,58531.0,58530.0,2.25682654]
[1723712641734,6.4e-07,58531.0,58530.0,2.24282654]
[1723712642134,6.4e-07,58531.0,58530.0,2.085272]
[1723712642573,6.4e-07,58531.0,58530.0,2.099272]
[1723712642989,6.4e-07,58531.0,58530.0,2.085272]
[1723712643397,6.4e-07,58531.0,58530.0,2.27082654]
[1723712643808,6.4e-07,58531.0,58530.0,2.25682654]
[1723712644023,6.4e-07,58531.0,58530.0,2.24282654]
[1723712644232,6.4e-07,58531.0,58530.0,2.085272]
[1723712644435,6.4e-07,58531.0,58530.0,2.099272]
[1723712644823,6.4e-07,58531.0,58530.0,2.085272]
[1723712644946,6.4e-07,58531.0,58530.0,2.099272]
[1723712648469,6.4e-07,58531.0,58530.0,2.27082654]
[1723712648988,6.4e-07,58531.0,58530.0,2.27173074]
[1723712649194,6.4e-07,58531.0,58530.0,2.61543574]
[1723712649404,6.4e-07,58531.0,58530.0,2.27173074]
[1723712650037,6.4e-07,58531.0,58530.0,2.25773074]
[1723712650038,0.00082264,58531.0,58530.0,2.25773074]
[1723712650244,0.00011,58546.0,58530.0,2.25773074]
[1723712650245,0.00011,58546.0,58532.0,0.002]
[1723712650447,0.00011,58546.0,58545.0,1.683476]
[1723712650659,0.00011,58546.0,58545.0,1.783476]
[1723712651081,0.00011,58546.0,58545.0,1.195659]
[1723712651283,0.00011,58546.0,58545.0,0.854042]
[1723712653378,0.00011,58546.0,58545.0,1.195659]
[1723712653779,0.00011,58546.0,58545.0,1.197659]
[1723712654204,0.00011,58546.0,58545.0,1.195659]
[1723712654413,0.00011,58546.0,58545.0,1.196659]
[1723712654847,0.00011,58546.0,58545.0,1.195659]
[1723712655043,0.00011,58546.0,58545.0,0.858042]
[1723712656252,0.00011,58546.0,58545.0,1.200659]
[1723712656725,0.00011,58546.0,58545.0,0.858042]
[1723712656930,0.00011,58546.0,58545.0,0.855042]
[1723712657372,0.00011,58546.0,58545.0,0.856042]
[1723712657576,0.48646954,58546.0,58545.0,0.001]
[1723712657727,1.95969154,58546.0,58545.0,0.001]
[1723712657933,1.98269154,58546.0,58545.0,0.002]
[1723712658375,2.32430254,58546.0,58545.0,0.001]
[1723712659425,0.1369,58533.0,58531.0,0.341699]
[1723712659656,0.1369,58533.0,58530.0,0.0009042]
[1723712659657,0.1369,58533.0,58532.0,0.170846]
[1723712659802,0.0758,58533.0,58532.0,0.854232]
[1723712660184,0.0758,58533.0,58532.0,1.195925]
[1723712660630,0.0758,58533.0,58532.0,0.854232]
[1723712661187,0.0809,58539.0,58538.0,0.512487]
[1723712661724,1.06545454,58539.0,58530.0,0.0009042]
[1723712661940,0.17155454,58538.0,58535.0,0.341673]
[1723712662187,0.023,58537.0,58536.0,0.512503]
[1723712662315,0.0809,58539.0,58538.0,0.512487]
[1723712662518,0.25245454,58539.0,58538.0,0.512487]
[1723712662739,1.04245454,58539.0,58538.0,0.512487]
[1723712663191,0.25245454,58539.0,58538.0,0.512487]
[1723712663817,0.25245454,58539.0,58532.0,0.3425912]
[1723712663818,0.0754,58538.0,58532.0,0.3425912]
[1723712663978,0.0754,58538.0,58532.0,0.0009042]
[1723712663979,0.0771,58536.0,58532.0,0.0009042]
[1723712664185,0.0771,58534.0,58532.0,0.1717482]
[1723712664412,0.17155454,58533.0,58532.0,0.1717482]
[1723712664629,0.19455454,58533.0,58532.0,0.1717482]
[1723712664796,0.19455454,58533.0,58532.0,0.5134412]
[1723712665898,0.19455454,58533.0,58532.0,0.8551342]
[1723712666240,0.0771,58534.0,58533.0,1.195904]
[1723712667124,0.0648,58537.0,58536.0,0.854175]
[1723712668116,0.0648,58537.0,58536.0,0.512505]
[1723712668992,0.0787,58538.0,58537.0,0.512496]
[1723712669605,0.8487,58538.0,58537.0,0.512496]
[1723712669807,0.8487,58538.0,58537.0,0.170832]
[1723712670217,0.8487,58538.0,58534.0,0.34168]
[1723712670218,1.02025454,58538.0,58534.0,0.34168]
[1723712670444,0.17155454,58537.0,58534.0,0.34168]
[1723712670798,0.17155454,58537.0,58532.0,0.3425962]
[1723712670799,0.1417,58535.0,58532.0,0.0009042]
[1723712670985,0.17155454,58534.0,58533.0,0.170842]
[1723712671185,0.0757,58539.0,58538.0,0.512487]
[1723712671398,0.24725454,58539.0,58538.0,0.854145]
[1723712671545,0.24725454,58539.0,58538.0,0.512487]
[1723712671944,0.24725454,58539.0,58538.0,0.854145]
[1723712672180,0.24725454,58539.0,58538.0,0.512487]
[1723712672425,0.24725454,58539.0,58538.0,0.854145]
[1723712673163,0.24725454,58539.0,58538.0,0.512487]
[1723712673859,0.170917,58546.0,58532.0,0.0009042]
[1723712673860,0.00011,58546.0,58532.0,0.0009042]
[1723712674060,1.51705454,58543.0,58542.0,0.512452]
[1723712674263,0.8691,58543.0,58542.0,0.854087]
[1723712675793,0.8691,58543.0,58542.0,0.855087]
[1723712676028,0.79,58543.0,58542.0,0.855087]
[1723712676173,0.00011,58546.0,58545.0,0.854042]
[1723712676423,0.79011,58546.0,58545.0,0.854042]
[1723712676563,0.790932,58546.0,58545.0,0.512425]
[1723712676948,0.790932,58546.0,58545.0,0.170808]
[1723712677419,0.0811,58545.0,58542.0,0.171816]
[1723712677629,0.0811,58545.0,58541.0,0.17082]
[1723712677630,0.19455454,58544.0,58541.0,0.17082]
[1723712677834,0.85413,58539.0,58538.0,0.0009042]
[1723712678047,2.03972086,58539.0,58538.0,0.0009042]
[1723712678258,1.98608454,58539.0,58538.0,0.0009042]
[1723712678483,2.04666508,58539.0,58538.0,0.0009042]
[1723712678668,1.98608454,58539.0,58538.0,0.0009042]
[1723712678877,2.32039544,58539.0,58538.0,0.0009042]
[1723712679078,2.34594274,58539.0,58538.0,0.0009042]
[1723712679252,2.32039703,58539.0,58538.0,0.0009042]
[1723712679480,2.14884249,58539.0,58538.0,0.0009042]
[1723712679686,2.14884249,58539.0,58538.0,0.0019042]
[1723712679687,2.43865495,58539.0,58538.0,0.0019042]
[1723712680115,2.69193876,58539.0,58538.0,0.0019042]
[1723712680242,2.69193876,58539.0,58538.0,0.0009042]
[1723712680243,2.53865495,58539.0,58538.0,0.0009042]
[1723712680446,2.8634933,58539.0,58538.0,0.0009042]
[1723712680670,3.2051453,58539.0,58538.0,0.0019042]
[1723712681251,3.07386149,58539.0,58538.0,0.0029042]
[1723712681451,3.2271453,58539.0,58538.0,0.0029042]
[1723712681652,3.22535258,58539.0,58538.0,0.0019042]
[1723712681861,3.23935258,58539.0,58538.0,0.0029042]
[1723712682058,3.23935258,58539.0,58538.0,0.0019042]
[1723712682279,3.22484789,58539.0,58538.0,0.0029042]
[1723712682453,4.95077716,58539.0,58538.0,0.0029042]
[1723712682660,1.690391,58533.0,58530.0,0.0009042]
[1723712682960,4.77388217,58533.0,58530.0,0.0009042]
[1723712683138,5.28804372,58533.0,58530.0,0.0009042]
[1723712683357,1.710445,58531.0,58530.0,0.0009042]
[1723712683600,3.20310815,58531.0,58530.0,0.0009042]
[1723712683791,3.54480715,58531.0,58530.0,0.0009042]
[1723712683943,3.71636169,58531.0,58530.0,0.0009042]
[1723712684146,3.71636169,58531.0,58507.0,0.0009053]
[1723712684147,0.854582,58508.0,58507.0,0.0009053]
[1723712684417,2.24936954,58508.0,58507.0,0.0009053]
[1723712684619,1.93053654,58508.0,58507.0,0.0009053]
[1723712685215,2.27236954,58508.0,58507.0,0.0009053]
[1723712685536,2.79947169,58508.0,58507.0,0.0009053]
[1723712685742,2.84841143,58508.0,58507.0,0.0009053]
[1723712685981,2.89371281,58508.0,58507.0,0.0009053]
[1723712686374,2.84841143,58508.0,58507.0,0.0009053]
[1723712686549,2.93289993,58508.0,58507.0,0.0019053]
[1723712686977,2.84841143,58508.0,58507.0,0.0009053]
[1723712687188,2.84641143,58508.0,58507.0,2.9009053]
[1723712687613,2.85341143,58508.0,58507.0,2.9009053]
[1723712687821,2.89676452,58508.0,58507.0,2.9009053]
[1723712688034,2.55553339,58508.0,58507.0,2.9009053]
[1723712688255,2.56953339,58508.0,58507.0,2.9009053]
[1723712688703,2.57953339,58508.0,58507.0,2.9009053]
[1723712688915,2.88423339,58508.0,58507.0,2.9019053]
[1723712689130,2.87023339,58508.0,58507.0,2.9019053]
[1723712689330,2.85923339,58508.0,58507.0,2.9009053]
[1723712689530,2.80827843,58508.0,58507.0,2.9009053]
[1723712689742,2.82227843,58508.0,58507.0,2.9019053]
[1723712690147,2.80827843,58508.0,58507.0,2.9009053]
[1723712690622,2.83627843,58508.0,58507.0,2.9019053]
[1723712691041,2.82227843,58508.0,58507.0,2.9009053]
[1723712691253,2.83627843,58508.0,58507.0,2.9019053]
[1723712691648,2.83627843,58508.0,58507.0,2.9009053]
[1723712691649,2.51857843,58508.0,58507.0,2.9009053]
[1723712691859,2.37736954,58508.0,58507.0,2.9019053]
[1723712692265,1.69370354,58508.0,58507.0,2.9019053]
[1723712692479,1.67970354,58508.0,58507.0,2.9019053]
[1723712692684,1.57970354,58508.0,58507.0,2.9019053]
[1723712692889,1.57970354,58508.0,58507.0,2.9029053]
[1723712692890,1.57800354,58508.0,58507.0,2.9029053]